bitfinex/quotes_ETHUSD_20251214
["timestamp","ask_amount","ask_price","bid_price","bid_amount"]
[1765680054189,0.001,3120.5,3120.4,44.31634522]
[1765680058171,0.4549,3120.5,3120.4,44.31634522]
[1765680058997,0.001,3120.5,3120.4,44.31634522]
[1765680062291,0.001,3120.5,3120.4,44.72184922]
[1765680069388,0.4549,3120.5,3120.4,44.72184922]
[1765680069905,0.001,3120.5,3120.4,44.72184922]
[1765680070301,0.001,3120.5,3120.4,14.72184922]
[1765680070485,0.001,3120.5,3120.4,44.72184922]
[1765680071995,0.001,3120.5,3120.4,40.40804652]
[1765680072388,0.4549,3120.5,3120.4,36.09546948]
[1765680072593,0.918,3120.5,3120.4,40.00254252]
[1765680074391,0.001,3120.5,3120.4,40.00254252]
[1765680075020,0.001,3120.5,3120.4,40.00274418]
[1765680077227,0.918,3120.5,3120.4,40.00274418]
[1765680086538,0.918,3120.5,3120.4,10.00274418]
[1765680086724,0.918,3120.5,3120.4,40.00274418]
[1765680087754,0.001,3120.5,3120.4,40.00274418]
[1765680091645,0.001,3120.5,3120.4,10.00274418]
[1765680091852,0.001,3120.5,3120.4,39.06015278]
[1765680092159,0.001,3120.5,3120.4,38.09797133]
[1765680092664,0.001,3120.5,3120.4,38.58987133]
[1765680093261,0.496,3120.5,3120.4,38.58987133]
[1765680093557,0.9879,3120.5,3120.4,38.58987133]
[1765680100963,0.9879,3120.5,3120.4,8.58987133]
[1765680101139,0.9879,3120.5,3120.4,38.58987133]
[1765680103152,0.496,3120.5,3120.4,38.58987133]
[1765680103662,0.001,3120.5,3120.4,38.58987133]
[1765680103858,0.001,3120.5,3120.4,41.79947446]
[1765680106051,0.001,3120.5,3120.4,11.79947446]
[1765680106254,0.001,3120.5,3120.4,38.58987133]
[1765680106968,0.496,3120.5,3120.4,34.27709263]
[1765680107267,0.9879,3120.5,3120.4,38.58987133]
[1765680110354,0.9879,3120.5,3120.4,38.58993358]
[1765680111170,0.9879,3120.5,3120.4,8.58993358]
[1765680111472,0.9879,3120.5,3120.4,38.58993358]
[1765680112171,0.9879,3120.5,3120.4,8.58993358]
[1765680112366,0.9879,3120.5,3120.4,38.58993358]
[1765680112568,0.496,3120.5,3120.4,38.58993358]
[1765680115266,0.496,3120.5,3120.4,8.58993358]
[1765680115465,0.496,3120.5,3120.4,38.58993358]
[1765680121088,0.9563,3120.5,3120.4,38.58993358]
[1765680122287,0.496,3120.5,3120.4,38.58993358]
[1765680122487,0.9563,3120.5,3120.4,38.58993358]
[1765680123378,0.9563,3120.5,3120.4,8.58993358]
[1765680123572,0.9563,3120.5,3120.4,38.58993358]
[1765680130105,0.001,3120.5,3120.4,38.58993358]
[1765680133915,0.001,3120.5,3120.4,38.59002865]
[1765680134723,0.001,3120.5,3120.4,42.90296467]
[1765680135026,0.001,3120.5,3120.4,43.4138139]
[1765680145295,0.001,3120.5,3120.4,47.72614064]
[1765680156719,0.4556,3120.5,3120.4,47.72614064]
[1765680157446,0.926,3120.5,3120.4,47.72614064]
[1765680158345,0.4556,3120.5,3120.4,47.72614064]
[1765680160424,0.926,3120.5,3120.4,47.72614064]
[1765680165169,0.4556,3120.5,3120.4,47.72614064]
[1765680166859,0.4556,3120.5,3120.4,43.41259534]
[1765680167466,0.926,3120.5,3120.4,43.41259534]
[1765680173692,0.4556,3120.5,3120.4,43.41259534]
[1765680174196,0.001,3120.5,3120.4,43.41259534]
[1765680178913,0.001,3120.5,3120.4,13.41259534]
[1765680179210,0.001,3120.5,3120.4,43.41259534]
[1765680180309,0.001,3120.5,3120.4,43.41129818]
[1765680180911,0.001,3120.5,3120.4,13.41129818]
[1765680181098,0.001,3120.5,3120.4,43.41129818]
[1765680181910,0.001,3120.5,3120.4,43.81680218]
[1765680182205,0.001,3121.0,3120.9,38.62335632]
[1765680182407,0.4987,3121.5,3121.0,30.0]
[1765680182582,0.4987,3121.5,3121.4,34.31167816]
[1765680182905,0.4987,3121.5,3121.4,4.31167816]
[1765680183209,0.9873,3121.5,3121.4,34.31167816]
[1765680183508,0.9873,3121.5,3121.4,35.27369917]
[1765680184094,0.9873,3121.5,3121.4,38.47738982]
[1765680186819,0.9883,3121.5,3121.4,38.47738982]
[1765680189421,0.4896,3121.5,3121.4,38.47738982]
[1765680189601,0.001,3121.5,3121.4,38.47738982]
[1765680190617,0.4896,3121.5,3121.4,38.47738982]
[1765680191493,0.9883,3121.5,3121.4,38.47738982]
[1765680193940,0.9883,3121.5,3121.4,38.475732]
[1765680195218,0.9883,3121.5,3121.4,41.68533513]
[1765680204250,0.9883,3121.5,3121.4,38.475732]
[1765680205768,0.9883,3121.5,3121.4,8.475732]
[1765680205932,0.9883,3121.5,3121.4,38.475732]
[1765680215386,0.9883,3121.5,3121.4,8.25271166]
[1765680215559,0.9883,3121.5,3121.4,4.16571166]
[1765680215886,0.9883,3121.5,3121.4,7.51371099]
[1765680216087,1.28867826,3121.5,3121.4,7.51371099]
[1765680216266,0.9883,3121.5,3121.4,7.51371099]
[1765680217066,0.9883,3121.5,3121.4,7.51508953]
[1765680227999,1.28852557,3121.5,3121.2,33.20383597]
[1765680228202,0.4719,3121.3,3121.2,33.20383597]
[1765680228592,0.943,3121.3,3121.2,33.20383597]
[1765680230111,0.943,3121.3,3121.2,3.20383597]
[1765680234493,0.944,3121.3,3121.2,3.20383597]
[1765680241341,0.001,3121.3,3121.2,3.20383597]
[1765680241640,0.4857,3121.3,3121.2,3.20383597]
[1765680241845,1.23613283,3121.3,3121.1,3.20397383]
[1765680242137,0.505,3121.2,3121.1,3.20397383]
[1765680242342,1.4401,3121.2,3121.1,3.20397383]
[1765680242718,0.505,3121.2,3121.1,4.31139888]
[1765680243323,0.9897,3121.2,3121.1,4.31139888]
[1765680244342,0.9897,3121.2,3121.1,7.51539747]
[1765680245214,0.9897,3121.2,3121.1,3.20399859]
[1765680245416,0.9897,3121.2,3121.1,7.51539747]
[1765680245618,0.001,3121.3,3121.2,30.0]
[1765680246821,0.001,3121.3,3121.2,33.20389593]
[1765680250644,0.001,3121.3,3121.2,41.13040194]
[1765680251152,0.001,3121.3,3121.2,42.09233966]
[1765680251943,0.001,3121.3,3121.2,42.67281495]
[1765680252170,0.001,3121.5,3121.4,35.29507489]
[1765680252327,0.001,3121.5,3121.4,35.80007489]
[1765680252527,0.001,3121.5,3121.4,39.00967802]
[1765680252754,0.001,3121.5,3121.4,39.13793186]
[1765680253960,0.001,3121.5,3121.4,46.65081859]
[1765680259865,0.001,3121.5,3121.4,16.65081859]
[1765680260067,0.001,3121.5,3121.4,46.65081859]
[1765680264067,0.001,3121.5,3121.4,16.65081859]
[1765680264270,0.001,3121.5,3121.4,46.65081859]
[1765680287435,0.001,3121.5,3121.4,46.65033187]
[1765680288211,0.001,3121.8,3121.7,0.405504]
[1765680288422,0.001,3121.8,3121.7,39.63581807]
[1765680288636,0.001,3121.8,3121.7,39.60378425]
[1765680288940,0.001,3121.8,3121.7,39.79928425]
[1765680289725,0.001,3122.2,3122.1,47.51187483]
[1765680290037,0.001,3122.2,3122.1,38.01687483]
[1765680290454,0.001,3122.2,3122.1,39.45522338]
[1765680291535,0.001,3122.2,3122.1,40.33172738]
[1765680292711,0.001,3122.2,3122.1,10.33172738]
[1765680292917,0.001,3122.2,3122.1,40.33172738]
[1765680293231,0.001,3122.8,3122.6,0.98597929]
[1765680293530,0.001,3122.8,3122.7,39.70328025]
[1765680293849,0.001,3122.8,3122.7,43.37663718]
[1765680294819,0.001,3122.8,3122.7,13.37663718]
[1765680295025,0.001,3122.8,3122.7,43.37663718]
[1765680295232,0.001,3122.8,3122.7,46.58624031]
[1765680302946,0.001,3122.8,3122.7,16.58624031]
[1765680303143,0.4547,3122.8,3122.7,46.58624031]
[1765680303356,0.9171,3122.8,3122.7,14.12590248]
[1765680303554,0.9171,3122.8,3122.7,3.80890248]
[1765680303833,0.9171,3122.8,3122.7,7.01125941]
[1765680309033,0.4547,3122.8,3122.7,26.47725941]
[1765680309438,0.9171,3122.8,3122.7,26.47725941]
[1765680310074,0.9171,3122.8,3122.7,37.01125941]
[1765680310933,0.9171,3122.8,3122.7,7.01125941]
[1765680311172,0.9171,3122.8,3122.7,37.01125941]
[1765680312285,0.9171,3122.8,3122.7,41.32016189]
[1765680312490,0.9171,3122.8,3122.7,37.51125941]
[1765680315090,0.9171,3122.8,3122.7,7.51125941]
[1765680315959,0.9171,3122.8,3122.7,7.50993599]
[1765680316787,0.4547,3122.8,3122.7,7.50993599]
[1765680317093,0.4547,3122.8,3122.7,37.50993599]
[1765680318877,0.9171,3122.8,3122.7,37.50993599]
[1765680321969,0.4547,3122.8,3122.7,41.81751505]
[1765680322266,0.001,3122.8,3122.7,42.29781505]
[1765680322466,0.001,3122.8,3122.7,42.29550985]
[1765680327970,0.001,3122.8,3122.7,46.42131298]
[1765680329198,0.001,3122.8,3122.7,47.00178827]
[1765680330000,0.001,3122.8,3122.7,47.40729227]
[1765680332298,0.001,3122.8,3122.7,46.95349227]
[1765680332507,0.001,3122.8,3122.7,47.40729227]
[1765680334309,0.001,3122.8,3122.7,46.95349227]
[1765680335022,0.001,3122.8,3122.7,47.40729227]
[1765680335628,0.001,3122.8,3122.7,47.91229227]
[1765680339830,0.001,3122.8,3122.7,47.40729227]
[1765680340013,0.001,3122.8,3122.7,47.91229227]
[1765680341337,0.001,3122.8,3122.7,17.91229227]
[1765680341536,0.001,3122.8,3122.7,47.91229227]
[1765680343426,0.001,3122.8,3122.7,47.45849227]
[1765680343623,0.001,3122.8,3122.7,46.97819227]
[1765680344321,0.001,3122.8,3122.7,16.97819227]
[1765680344516,0.001,3122.8,3122.7,46.97819227]
[1765680345332,0.001,3122.8,3122.7,16.97819227]
[1765680345536,0.001,3122.8,3122.7,47.47009227]
[1765680348545,0.001,3122.8,3122.7,47.92389227]
[1765680349417,0.001,3122.8,3122.7,17.92389227]
[1765680349629,0.001,3122.8,3122.7,47.92389227]
[1765680350039,0.001,3122.8,3122.7,47.47009227]
[1765680353049,0.001,3122.8,3122.7,47.92389227]
[1765680357749,0.001,3122.8,3122.7,52.22911094]
[1765680361866,0.001,3122.8,3122.7,51.77531094]
[1765680362267,0.4853,3122.8,3122.7,51.28341094]
[1765680362473,0.953,3122.8,3122.7,51.28341094]
[1765680362689,0.4853,3122.8,3122.7,51.28341094]
[1765680362875,0.4853,3122.8,3122.7,46.97577669]
[1765680365394,0.001,3122.8,3122.7,46.97577669]
[1765680365588,0.001,3122.8,3122.7,47.46877669]
[1765680371888,0.001,3122.8,3122.7,47.93687669]
[1765680372990,0.001,3122.8,3122.7,17.93687669]
[1765680373315,0.001,3122.8,3122.7,47.93687669]
[1765680375114,0.001,3122.8,3122.7,17.93687669]
[1765680375313,0.001,3122.8,3122.7,47.93687669]
[1765680376117,0.001,3122.8,3122.7,17.93687669]
[1765680376295,0.001,3122.8,3122.7,47.93687669]
[1765680378013,0.001,3122.8,3122.7,47.46863131]
[1765680379599,0.4853,3122.8,3122.7,46.97563131]
[1765680379800,0.953,3122.8,3122.7,46.97563131]
[1765680380219,0.953,3122.8,3122.7,16.97563131]
[1765680380419,0.953,3122.8,3122.7,46.97563131]
[1765680385022,0.4853,3122.8,3122.7,46.97563131]
[1765680388154,0.001,3122.8,3122.7,46.97563131]
[1765680392969,0.001,3122.8,3122.7,51.28165931]
[1765680393339,0.4636,3122.8,3122.7,51.28165931]
[1765680394380,0.4636,3122.8,3122.7,48.07205618]
[1765680396565,0.4636,3122.8,3122.7,18.07205618]
[1765680396768,0.4636,3122.8,3122.7,48.07205618]
[1765680399672,0.4636,3122.8,3122.7,18.07205618]
[1765680399874,0.4636,3122.8,3122.7,48.07205618]
[1765680400074,0.9227,3122.8,3122.7,48.07205618]
[1765680400872,0.9227,3122.8,3122.7,22.43826022]
[1765680401171,0.9227,3122.8,3122.7,10.77835693]
[1765680401376,0.9227,3122.8,3122.7,9.36035693]
[1765680401701,0.9227,3122.8,3122.7,3.20235693]
[1765680401843,0.9227,3122.8,3122.7,33.20235693]
[1765680403746,0.9227,3122.8,3122.7,13.85035693]
[1765680404258,0.9227,3122.8,3122.7,7.50838493]
[1765680427878,0.9227,3122.8,3122.7,7.51006745]
[1765680435216,0.001,3122.8,3122.7,42.28027797]
[1765680438114,0.001,3122.8,3122.7,37.97178592]
[1765680438702,0.001,3122.8,3122.7,42.27871491]
[1765680438896,0.001,3122.8,3122.7,42.77861491]
[1765680440124,0.001,3122.8,3122.7,38.47168592]
[1765680442523,0.001,3122.8,3122.7,38.97668592]
[1765680442699,0.001,3122.8,3122.7,44.30824208]
[1765680443213,0.001,3122.8,3122.7,45.26978824]
[1765680443414,0.001,3122.8,3122.7,15.26978824]
[1765680443618,0.001,3122.8,3122.7,45.26978824]
[1765680444418,0.001,3122.8,3122.7,15.26978824]
[1765680444623,0.001,3122.8,3122.7,45.26978824]
[1765680446614,0.001,3122.8,3122.7,45.24028824]
[1765680448402,0.001,3122.8,3122.7,46.22626753]
[1765680458761,0.001,3122.8,3122.7,16.22626753]
[1765680459044,0.001,3122.8,3122.7,46.22626753]
[1765680463030,0.001,3122.8,3122.7,46.22193879]
[1765680476236,0.001,3122.8,3122.7,45.75153879]
[1765680479438,0.4638,3122.8,3122.7,45.28903879]
[1765680479638,0.001,3122.8,3122.7,45.28903879]
[1765680481872,0.001,3122.8,3122.7,45.74073879]
[1765680484289,0.001,3122.8,3122.7,46.19363879]
[1765680490384,0.001,3122.8,3122.7,16.19363879]
[1765680490585,0.001,3122.8,3122.7,45.74073879]
[1765680495389,0.001,3122.8,3122.7,15.74073879]
[1765680495584,0.001,3122.8,3122.7,45.74073879]
[1765680495784,0.001,3122.8,3122.7,45.28903879]
[1765680496364,0.001,3122.8,3122.7,15.28903879]
[1765680496571,0.001,3122.8,3122.7,45.28903879]
[1765680498498,0.001,3122.8,3122.7,49.59440192]
[1765680498701,0.4638,3122.8,3122.7,49.59440192]
[1765680498892,0.9388,3122.8,3122.7,49.59440192]
[1765680499070,0.4638,3122.8,3122.7,49.59440192]
[1765680499881,0.001,3122.8,3122.7,45.29006945]
[1765680500185,0.001,3122.8,3122.7,45.74176945]
[1765680502583,0.001,3122.8,3122.7,45.29006945]
[1765680504285,0.9388,3122.8,3122.7,44.37956545]
[1765680504598,0.9388,3122.8,3122.7,43.85993828]
[1765680504995,0.9388,3122.8,3122.7,44.26544228]
[1765680509711,0.9388,3122.8,3122.7,14.26544228]
[1765680510006,0.9388,3122.8,3122.7,44.26544228]
[1765680510711,0.9388,3122.8,3122.7,14.26544228]
[1765680510887,0.9388,3122.8,3122.7,44.26544228]
[1765680520210,0.9388,3122.8,3122.7,14.26544228]
[1765680520407,0.9388,3122.8,3122.7,44.26544228]
[1765680524323,0.9388,3122.8,3122.7,14.26544228]
[1765680524516,0.9388,3122.8,3122.7,44.26544228]
[1765680525117,0.9388,3122.8,3122.7,34.16390309]
[1765680525305,0.9388,3122.8,3122.7,7.50763688]
[1765680525507,0.9388,3122.8,3122.7,38.08811217]
[1765680525811,0.9388,3122.8,3122.7,42.39339212]
[1765680527399,0.9388,3122.8,3122.7,12.39339212]
[1765680527618,0.9388,3122.8,3122.7,42.39339212]
[1765680529525,0.9388,3122.8,3122.7,33.78283222]
[1765680529703,0.9388,3122.8,3122.7,42.39339212]
[1765680530517,0.9388,3122.8,3122.7,12.39339212]
[1765680530705,0.9388,3122.8,3122.7,42.39339212]
[1765680531518,0.9388,3122.8,3122.7,12.39339212]
[1765680531698,0.9388,3122.8,3122.7,42.39339212]
[1765680532819,0.9388,3122.8,3122.7,38.08811217]
[1765680533925,0.9388,3122.8,3122.7,38.08984282]
[1765680535622,0.9388,3122.8,3122.7,8.08984282]
[1765680535926,0.9388,3122.8,3122.7,38.08984282]
[1765680537765,0.9388,3122.8,3122.7,48.08984282]
[1765680537957,0.9388,3122.8,3122.7,38.08984282]
[1765680541889,0.001,3122.8,3122.7,46.51006055]
[1765680542175,0.001,3122.8,3122.7,47.44886055]
[1765680543869,0.001,3122.8,3122.7,17.44886055]
[1765680544073,0.001,3122.8,3122.7,47.90426055]
[1765680546780,0.001,3122.8,3122.7,47.44886055]
[1765680551176,0.9214,3122.8,3122.7,46.95076055]
[1765680551490,0.4661,3122.8,3122.7,46.95076055]
[1765680552182,0.4661,3122.8,3122.7,16.95076055]
[1765680552354,0.4661,3122.8,3122.7,46.95076055]
[1765680553593,0.001,3122.8,3122.7,46.95076055]
[1765680558270,0.001,3122.8,3122.7,16.95076055]
[1765680558470,0.4661,3122.8,3122.7,46.95076055]
[1765680558673,0.001,3122.8,3122.7,47.90426055]
[1765680559904,0.001,3122.8,3122.7,47.90106199]
[1765680561906,0.001,3122.8,3122.7,47.44566199]
[1765680564489,0.001,3122.8,3122.7,17.44566199]
[1765680564690,0.001,3122.8,3122.7,47.44566199]
[1765680565812,0.001,3122.8,3122.7,47.92856199]
[1765680569018,0.001,3122.8,3122.7,52.2337686]
[1765680571725,0.001,3122.8,3122.7,22.2337686]
[1765680571928,0.001,3122.8,3122.7,52.2337686]
[1765680573818,0.001,3122.8,3122.7,47.44525257]
[1765680574116,0.001,3122.8,3122.7,47.92815257]
[1765680582326,0.001,3122.8,3122.7,47.44525257]
[1765680582526,0.9199,3122.8,3122.7,46.94715257]
[1765680582926,0.9199,3122.8,3122.7,42.23644196]
[1765680583121,0.9199,3122.8,3122.7,39.43234283]
[1765680583840,0.9199,3122.8,3122.7,39.02683883]
[1765680584042,0.9199,3122.8,3122.7,39.43234283]
[1765680584336,0.9199,3122.8,3122.7,39.93634283]
[1765680590442,0.9199,3122.8,3122.7,38.99754283]
[1765680591239,0.9199,3122.8,3122.7,8.99754283]
[1765680591540,0.9199,3122.8,3122.7,38.99754283]
[1765680592239,0.9199,3122.8,3122.7,8.99754283]
[1765680592433,0.9199,3122.8,3122.7,38.99754283]
[1765680595444,0.9199,3122.8,3122.7,48.99754283]
[1765680595650,0.9199,3122.8,3122.7,38.99754283]
[1765680597451,0.9199,3122.8,3122.7,8.99754283]
[1765680597656,0.9199,3122.8,3122.7,38.99754283]
[1765680598157,0.9199,3122.8,3122.7,16.35803883]
[1765680598675,0.9199,3122.8,3122.6,13.20444201]
[1765680598959,0.8402,3122.7,3122.6,3.682]
[1765680599171,0.8402,3122.7,3122.6,3.2]
[1765680599458,0.8402,3122.7,3122.6,16.40245948]
[1765680601273,0.8402,3122.7,3122.6,10.70766609]
[1765680604257,0.8402,3122.7,3122.6,6.40245948]
[1765680604467,0.8402,3122.7,3122.6,16.40245948]
[1765680605077,0.001,3122.8,3122.7,30.0]
[1765680605874,0.465,3122.8,3122.7,30.0]
[1765680606477,0.001,3122.8,3122.7,35.69298469]
[1765680606773,0.001,3122.8,3122.7,31.385304]
[1765680607152,0.001,3122.8,3122.7,34.58766093]
[1765680611150,0.001,3122.8,3122.7,4.58766093]
[1765680611363,0.001,3122.8,3122.7,34.58766093]
[1765680613804,0.9308,3122.8,3122.7,21.08235693]
[1765680613974,0.9308,3122.8,3122.7,13.86535693]
[1765680614478,0.9308,3122.8,3122.7,15.10835693]
[1765680615311,0.9308,3122.8,3122.7,33.70635693]
[1765680615708,0.9308,3122.8,3122.7,10.96035693]
[1765680618903,0.9308,3122.8,3122.7,3.20235693]
[1765680619990,0.9308,3122.8,3122.7,7.50998307]
[1765680623012,0.9308,3122.8,3122.7,3.20235693]
[1765680631844,0.9308,3122.8,3122.7,33.69895693]
[1765680631845,0.001,3122.8,3122.7,33.69895693]
[1765680632833,0.001,3122.8,3122.7,43.69895693]
[1765680633135,0.001,3122.8,3122.7,33.69895693]
[1765680636130,0.001,3122.8,3122.7,3.69895693]
[1765680636305,0.001,3122.8,3122.7,33.69895693]
[1765680636706,0.9066,3122.8,3122.7,33.20235693]
[1765680638441,0.001,3122.8,3122.7,33.69895693]
[1765680639132,0.001,3122.8,3122.7,3.69895693]
[1765680639337,0.001,3122.8,3122.7,33.69895693]
[1765680641423,0.001,3122.8,3122.7,38.00604616]
[1765680642647,0.001,3122.8,3122.7,33.69895693]
[1765680642851,0.9066,3122.8,3122.7,16.59144616]
[1765680643260,0.9066,3122.8,3122.7,21.39544616]
[1765680643560,0.9066,3122.8,3122.7,12.66944616]
[1765680644256,0.9066,3122.8,3122.7,21.90344616]
[1765680644558,0.9066,3122.8,3122.7,18.50344616]
[1765680644752,0.9066,3122.8,3122.7,3.20235693]
[1765680651536,0.9066,3122.8,3122.6,3.20445948]
[1765680651736,0.8411,3122.7,3122.6,3.20445948]
[1765680653955,0.8411,3122.7,3122.6,0.002]
[1765680657555,1.0286,3122.7,3122.6,0.002]
[1765680658572,1.32803625,3122.7,3122.6,0.002]
[1765680659588,4.53039318,3122.7,3122.6,0.002]
[1765680659770,8.83748241,3122.7,3122.6,0.002]
[1765680660080,9.79940471,3122.7,3122.6,0.002]
[1765680660284,5.49231548,3122.7,3122.6,0.002]
[1765680663281,16.20316738,3122.7,3122.6,0.002]
[1765680663654,16.70316738,3122.7,3122.6,0.002]
[1765680663850,12.39607815,3122.7,3122.6,0.002]
[1765680664155,12.90107815,3122.7,3122.6,0.002]
[1765680668785,17.88493076,3122.7,3122.6,0.002]
[1765680669169,13.57784153,3122.7,3122.6,0.002]
[1765680670474,17.88493076,3122.7,3122.6,0.002]
[1765680671290,13.57784153,3122.7,3122.6,0.002]
[1765680673490,17.88493076,3122.7,3122.6,0.002]
[1765680674585,13.57784153,3122.7,3122.6,0.002]
[1765680675868,17.8838927,3122.7,3122.6,0.002]
[1765680676796,22.20103829,3122.7,3122.6,0.002]
[1765680679876,22.20203829,3122.7,3122.6,0.002]
[1765680680285,17.88992088,3122.7,3122.6,0.002]
[1765680681375,22.20203829,3122.7,3122.6,0.002]
[1765680681876,17.88992178,3122.7,3122.6,0.002]
[1765680688382,13.57780347,3122.7,3122.6,0.002]
[1765680688583,17.88992178,3122.7,3122.6,0.002]
[1765680689581,22.20204009,3122.7,3122.6,0.002]
[1765680689807,0.58047529,3122.6,3122.5,0.002]
[1765680689983,7.20513697,3122.6,3122.5,0.002]
[1765680691095,7.68593697,3122.6,3122.5,0.002]
[1765680695816,14.08969964,3122.6,3122.5,0.002]
[1765680698713,14.0908138,3122.6,3122.5,0.002]
[1765680700796,14.0918138,3122.6,3122.5,0.002]
[1765680703021,13.1883138,3122.6,3122.5,0.6671]
[1765680703196,7.69007502,3122.6,3122.5,1.1408]
[1765680705724,10.8925345,3122.6,3122.5,1.1408]
[1765680711436,10.4117345,3122.6,3122.5,1.1408]
[1765680712833,7.20927502,3122.6,3122.5,1.1408]
[1765680713203,8.34683945,3122.6,3122.5,1.1408]
[1765680714332,11.54929893,3122.6,3122.5,1.1408]
[1765680714902,8.34683945,3122.6,3122.5,1.1408]
[1765680717732,8.34683945,3122.6,3122.5,1.1267]
[1765680717932,11.54929893,3122.6,3122.5,1.1267]
[1765680718327,6.70427502,3122.6,3122.5,1.1267]
[1765680725539,6.70427502,3122.6,3122.5,0.002]
[1765680726246,6.70427502,3122.6,3122.5,0.4706]
[1765680728346,6.70383183,3122.6,3122.5,0.4706]
[1765680730332,6.70383183,3122.6,3122.5,0.9302]
[1765680732217,6.70383183,3122.6,3122.5,0.4706]
[1765680733341,10.94761136,3122.6,3122.5,0.4706]
[1765680734245,7.74515188,3122.6,3122.5,0.4706]
[1765680738056,10.94761136,3122.6,3122.5,0.4706]
[1765680738428,10.94761136,3122.6,3122.5,0.002]
[1765680740727,8.21875188,3122.6,3122.5,0.002]
[1765680740944,11.42121136,3122.6,3122.5,0.002]
[1765680746055,8.21875188,3122.6,3122.5,0.002]
[1765680746232,7.74515188,3122.6,3122.5,0.4746]
[1765680747157,10.94761136,3122.6,3122.5,0.4746]
[1765680749240,7.74515188,3122.6,3122.5,0.4746]
[1765680750076,11.43111136,3122.6,3122.5,0.002]
[1765680750373,11.89631136,3122.6,3122.5,0.002]
[1765680750940,12.37091136,3122.6,3122.5,0.002]
[1765680751238,12.87091136,3122.6,3122.5,0.002]
[1765680755377,13.45138665,3122.6,3122.5,0.002]
[1765680755536,13.45138665,3122.6,3121.8,0.002]
[1765680755537,16.65384613,3122.6,3121.8,0.002]
[1765680755744,4.30976611,3122.2,3121.8,0.002]
[1765680756061,0.80406916,3122.1,3121.8,0.002]
[1765680756262,0.29906916,3122.0,3121.8,0.002]
[1765680756449,0.29906916,3121.9,3121.8,0.002]
[1765680756646,0.47329608,3121.9,3121.8,0.002]
[1765680756965,3.67647363,3121.9,3121.8,0.002]
[1765680757752,3.67647363,3121.9,3121.8,0.4746]
[1765680758379,3.6763459,3121.9,3121.8,0.4746]
[1765680759671,4.1598459,3121.9,3121.8,0.002]
[1765680759988,0.47316835,3121.9,3121.8,0.002]
[1765680760362,0.47316835,3121.9,3121.8,0.4746]
[1765680760576,0.47316835,3121.9,3121.8,0.9476]
[1765680760975,0.80394143,3121.9,3121.8,0.9476]
[1765680761281,0.505,3121.9,3121.8,0.9476]
[1765680762464,0.29886251,3121.9,3121.8,0.9476]
[1765680775867,0.29886251,3121.9,3121.8,0.4746]
[1765680780082,0.29886251,3121.9,3121.8,0.947]
[1765680782374,0.29886251,3121.9,3121.8,8.46025708]
[1765680783292,0.29886251,3121.9,3121.8,0.947]
[1765680783488,0.29949781,3121.9,3121.8,0.947]
[1765680784106,0.29949781,3121.9,3121.8,0.4746]
[1765680784800,0.29949781,3121.9,3121.8,0.947]
[1765680791406,0.29949781,3121.9,3121.8,0.4746]
[1765680793398,0.29949781,3121.9,3121.8,0.947]
[1765680795611,0.29949781,3121.9,3121.8,0.002]
[1765680795612,1.24209781,3121.9,3121.8,0.002]
[1765680795910,1.73710722,3121.9,3121.8,0.002]
[1765680798397,1.24209781,3121.9,3121.8,0.002]
[1765680798918,0.78249781,3121.9,3121.8,0.002]
[1765680799512,0.29949781,3121.9,3121.8,0.002]
[1765680800415,0.29975983,3121.9,3121.8,0.002]
[1765680802015,0.29976034,3121.9,3121.8,0.002]
[1765680805120,0.29976034,3121.9,3121.8,0.9707]
[1765680815937,0.29976034,3121.9,3121.8,0.4983]
[1765680816721,0.29976034,3121.9,3121.8,0.002]
[1765680818133,0.29976034,3121.9,3121.8,0.4636]
[1765680819244,0.29986534,3121.9,3121.8,0.4636]
[1765680830659,0.29986534,3121.9,3121.8,0.002]
[1765680833749,0.29989829,3121.9,3121.8,0.002]
[1765680836345,0.29989829,3121.9,3121.8,0.4636]
[1765680840556,2.11680556,3121.9,3121.8,0.002]
[1765680840955,1.62030556,3121.9,3121.8,0.002]
[1765680841362,2.30560556,3121.9,3121.8,0.002]
[1765680855190,2.11680556,3121.9,3121.8,0.002]
[1765680857256,1.16540556,3121.9,3121.8,0.002]
[1765680859959,1.62030556,3121.9,3121.8,0.002]
[1765680867089,2.58236667,3121.9,3121.8,0.002]
[1765680867295,2.58237615,3121.9,3121.8,0.002]
[1765680868663,2.12747615,3121.9,3121.8,0.472]
[1765680873470,1.26196888,3121.9,3121.8,0.472]
[1765680875003,1.76696888,3121.9,3121.8,0.9705]
[1765680877774,1.76696888,3121.9,3121.8,0.472]
[1765680885510,1.26196888,3121.9,3121.8,0.472]
[1765680888683,1.26199113,3121.9,3121.8,0.472]
[1765680890017,1.26198514,3121.9,3121.8,0.472]
[1765680897526,1.72708514,3121.9,3121.8,0.002]
[1765680897712,2.20158514,3121.9,3121.8,0.002]
[1765680901627,1.72708514,3121.9,3121.8,0.002]
[1765680901846,0.29992403,3121.9,3121.8,5.25505508]
[1765680906034,0.29992403,3121.9,3121.8,38.98384074]
[1765680906330,6.40376267,3122.0,3121.8,8.98384074]
[1765680906503,6.40376267,3122.0,3121.9,0.9418]
[1765680906707,6.70350156,3122.0,3121.9,0.9418]
[1765680907432,6.40376267,3122.0,3121.9,0.9418]
[1765680907930,0.001,3122.5,3121.9,3.25670604]
[1765680908136,0.804734,3122.4,3122.2,0.4744]
[1765680908341,0.299734,3122.3,3122.2,0.4744]
[1765680908507,0.299734,3122.3,3122.2,0.4674]
[1765680908714,0.299734,3122.3,3122.2,0.9418]
[1765680910229,0.299734,3122.3,3122.2,4.14466977]
[1765680912412,0.299734,3122.3,3122.2,3.67726977]
[1765680914348,0.96288221,3122.5,3122.2,3.67726977]
[1765680914725,0.29942433,3122.4,3122.2,3.67726977]